fUST/lending_fUST_20240906
["ID","MTS","AMOUNT","RATE_DAILY","PERIOD"]
[337309016,1725592633581,108928.26315719,0.00020455,2]
[337309024,1725592952634,159.464195,0.00019752,2]
[337309030,1725593326000,11556.34026891,0.0001,2]
[337309031,1725593328063,254.19476041,0.000129,2]
[337309032,1725593328092,14549.59968209,0.000129,2]
[337309103,1725593438934,-442.01047698,0.00020511,2]
[337309104,1725593438944,-1000.0,0.00020521,2]
[337309106,1725593438953,-1539.82314927,0.00020527,2]
[337309107,1725593438962,-150.112233,0.000206,3]
[337309108,1725593438972,-150.112233,0.000206,3]
[337309109,1725593438982,-150.112233,0.000206,4]
[337309110,1725593438993,-150.112233,0.000206,4]
[337309111,1725593439004,-150.112233,0.000206,2]
[337309112,1725593439015,-150.112233,0.000206,3]
[337309113,1725593439027,-150.112233,0.000206,2]
[337309114,1725593439039,-150.112233,0.000206,3]
[337309115,1725593439050,-150.112233,0.000206,4]
[337309116,1725593439059,-217.720922,0.000206,4]
[337309117,1725593439069,-150.112236,0.000206,4]
[337309118,1725593439078,-430.02,0.00020601,3]
[337309119,1725593439090,-215.01,0.00020601,3]
[337309120,1725593439099,-645.03,0.00020601,3]
[337309121,1725593439111,-300.0,0.00020608,2]
[337309122,1725593439123,-300.0,0.00020608,2]
[337309123,1725593439134,-469.38051163,0.0002061,2]
[337309124,1725593439145,-163.7920595,0.0002061,2]
[337309125,1725593439156,-305.42692933,0.0002061,2]
[337309126,1725593439165,-500.0,0.0002061,2]
[337309127,1725593439177,-500.0,0.0002061,2]
[337309128,1725593439187,-500.0,0.0002061,2]
[337309129,1725593439197,-500.0,0.0002061,2]
[337309130,1725593439207,-500.0,0.0002061,2]
[337309131,1725593439224,-500.0,0.0002061,2]
[337309132,1725593439235,-298.07350441,0.0002061,2]
[337309133,1725593439248,-500.0,0.0002061,2]
[337309134,1725593439259,-500.0,0.0002061,2]
[337309135,1725593439270,-500.0,0.0002061,2]
[337309136,1725593439280,-500.0,0.0002061,2]
[337309137,1725593439291,-500.0,0.0002061,2]
[337309138,1725593439302,-500.0,0.0002061,2]
[337309139,1725593439313,-500.0,0.0002061,2]
[337309140,1725593439324,-500.0,0.0002061,2]
[337309141,1725593439431,-500.0,0.0002061,2]
[337309142,1725593439440,-500.0,0.0002061,2]
[337309143,1725593439450,-500.0,0.0002061,2]
[337309144,1725593439461,-500.0,0.0002061,2]
[337309145,1725593439471,-500.0,0.0002061,2]
[337309146,1725593439481,-500.0,0.0002061,2]
[337309147,1725593439490,-500.0,0.0002061,2]
[337309148,1725593439500,-500.0,0.0002061,2]
[337309149,1725593439510,-500.0,0.0002061,2]
[337309150,1725593439519,-500.0,0.0002061,2]
[337309151,1725593439527,-500.0,0.0002061,2]
[337309152,1725593439537,-500.0,0.0002061,2]
[337309153,1725593439548,-500.0,0.0002061,2]
[337309154,1725593439557,-500.0,0.0002061,2]
[337309155,1725593439566,-500.0,0.0002061,2]
[337309156,1725593439575,-500.0,0.0002061,2]
[337309157,1725593439585,-279.80735044,0.0002061,2]
[337309158,1725593439594,-290.22313127,0.0002061,2]
[337309159,1725593439603,-179.87187785,0.0002061,2]
[337309160,1725593439613,-500.0,0.0002061,2]
[337309161,1725593439622,-500.0,0.0002061,2]
[337309162,1725593439632,-500.0,0.0002061,2]
[337309163,1725593439641,-500.0,0.0002061,2]
[337309164,1725593439651,-500.0,0.0002061,2]
[337309165,1725593439662,-500.0,0.0002061,2]
[337309166,1725593439672,-500.0,0.0002061,2]
[337309167,1725593439681,-500.0,0.0002061,2]
[337309168,1725593439690,-500.0,0.0002061,2]
[337309169,1725593439699,-500.0,0.0002061,2]
[337309170,1725593439711,-500.0,0.0002061,2]
[337309171,1725593439720,-500.0,0.0002061,2]
[337309172,1725593439730,-528.51981049,0.0002061,2]
[337309173,1725593439740,-500.0,0.0002061,2]
[337309174,1725593439749,-500.0,0.0002061,2]
[337309175,1725593439759,-500.0,0.0002061,2]
[337309176,1725593439768,-500.0,0.0002061,2]
[337309177,1725593439777,-500.0,0.0002061,2]
[337309178,1725593439786,-500.0,0.0002061,2]
[337309179,1725593439795,-500.0,0.0002061,2]
[337309180,1725593439804,-26789.29021248,0.00020611,15]
[337309181,1725593439814,-381826.336624,0.00020611,2]
[337309182,1725593439823,-249175.88486,0.00020611,2]
[337309183,1725593439833,-249175.88486,0.00020611,2]
[337309184,1725593439845,-500.0,0.0002062,2]
[337309185,1725593439854,-2933.35,0.0002062,2]
[337309186,1725593439863,-10717.05,0.0002062,2]
[337309187,1725593439873,-1177.07,0.0002062,2]
[337309188,1725593439882,-1252.65,0.0002062,2]
[337309189,1725593439891,-500.0,0.0002062,2]
[337309190,1725593439901,-664.99,0.0002062,2]
[337309191,1725593439911,-500.0,0.0002062,2]
[337309192,1725593439920,-15307.58,0.0002062,2]
[337309193,1725593439929,-1213.59,0.0002062,2]
[337309194,1725593439938,-552.35,0.0002062,2]
[337309195,1725593439947,-659.16,0.0002062,2]
[337309196,1725593439957,-500.09657772,0.0002062,2]
[337309197,1725593439972,-2904.94,0.0002062,2]
[337309198,1725593439982,-2679.31,0.0002062,2]
[337309199,1725593439991,-500.0,0.0002062,2]
[337309200,1725593440001,-3747.51,0.0002062,2]
[337309201,1725593440010,-500.0,0.0002062,2]
[337309202,1725593440019,-1683.72,0.0002062,2]
[337309203,1725593440029,-508.0248532,0.0002062,2]
[337309204,1725593440038,-1813.24,0.0002062,2]
[337309205,1725593440048,-500.0,0.0002062,2]
[337309206,1725593440057,-500.0,0.0002062,2]
[337309207,1725593440067,-500.0,0.0002062,2]
[337309208,1725593440076,-11950.7,0.0002062,2]
[337309209,1725593440087,-11950.7,0.0002062,2]
[337309210,1725593440096,-11950.7,0.0002062,2]
[337309211,1725593440106,-11950.7,0.0002062,2]
[337309212,1725593440116,-11950.7,0.0002062,2]
[337309213,1725593440126,-11950.7,0.0002062,2]
[337309214,1725593440135,-1831.36,0.0002062,2]
[337309215,1725593440145,-11950.7,0.0002062,2]
[337309216,1725593440155,-11950.7,0.0002062,2]
[337309217,1725593440166,-500.0,0.00020621,2]
[337309218,1725593440175,-2172.16,0.00020621,2]
[337309219,1725593440186,-3314.59,0.00020621,2]
[337309220,1725593440196,-2026.03,0.00020621,2]
[337309221,1725593440207,-500.0,0.00020621,2]
[337309222,1725593440219,-1752.14,0.00020621,2]
[337309223,1725593440229,-500.0,0.00020621,2]
[337309224,1725593440239,-502.6155908,0.00020621,2]
[337309225,1725593440249,-12734.97,0.00020621,2]
[337309226,1725593440258,-2670.35,0.00020621,2]
[337309227,1725593440268,-2272.45,0.00020621,2]
[337309228,1725593440277,-500.0,0.00020621,2]
[337309229,1725593440288,-550.57,0.00020621,2]
[337309230,1725593440298,-1764.86,0.00020621,2]
[337309231,1725593440308,-1698.33,0.00020621,2]
[337309232,1725593440318,-500.0,0.00020621,2]
[337309233,1725593440328,-500.0,0.00020621,2]
[337309234,1725593440337,-3979.67,0.00020621,2]
[337309235,1725593440347,-500.0,0.00020621,2]
[337309236,1725593440356,-2381.91,0.00020621,2]
[337309237,1725593440366,-500.0,0.00020621,2]
[337309238,1725593440379,-500.0,0.00020621,2]
[337309240,1725593440388,-500.0,0.00020621,2]
[337309241,1725593440397,-500.0,0.00020621,2]
[337309242,1725593440407,-1314.22,0.00020621,2]
[337309243,1725593440418,-753.41,0.00020621,2]
[337309244,1725593440428,-572.53,0.00020621,2]
[337309245,1725593440438,-888.48,0.00020621,2]
[337309246,1725593440448,-852.67,0.00020621,2]
[337309247,1725593440461,-5146.8,0.00020621,2]
[337309248,1725593440472,-500.0,0.00020621,2]
[337309249,1725593440482,-1996.99,0.00020621,2]
[337309250,1725593440494,-500.0,0.00020621,2]
[337309251,1725593440503,-2269.72,0.00020621,2]
[337309252,1725593440515,-500.0,0.00020621,2]
[337309253,1725593440526,-2344.78,0.00020621,2]
[337309254,1725593440537,-504.42,0.00020621,2]
[337309255,1725593440549,-500.0,0.00020621,2]
[337309256,1725593440559,-1321.4,0.00020621,2]
[337309257,1725593440569,-500.0,0.00020621,2]
[337309258,1725593440578,-500.0,0.00020621,2]
[337309259,1725593440588,-2918.83,0.00020621,2]
[337309260,1725593440597,-771.77,0.00020621,2]
[337309261,1725593440608,-500.0,0.00020621,2]
[337309262,1725593440618,-500.0,0.00020621,2]
[337309263,1725593440629,-11950.7,0.00020621,2]
[337309264,1725593440640,-11950.7,0.00020621,2]
[337309266,1725593440652,-11950.7,0.00020621,2]
[337309267,1725593440662,-11950.7,0.00020621,2]
[337309268,1725593440671,-11950.7,0.00020621,2]
[337309269,1725593440681,-11950.7,0.00020621,2]
[337309270,1725593440691,-11950.7,0.00020621,2]
[337309271,1725593440700,-11950.7,0.00020621,2]
[337309272,1725593440710,-11950.7,0.00020621,2]
[337309273,1725593440721,-500.0,0.00020638,2]
[337309274,1725593440731,-500.0,0.00020638,2]
[337309275,1725593440741,-393.56205757,0.00020638,2]
[337309276,1725593440751,-500.0,0.00020638,2]
[337309277,1725593440761,-500.0,0.00020638,2]
[337309278,1725593440771,-876.54,0.00020638,2]
[337309279,1725593440780,-596.98,0.00020638,2]
[337309280,1725593440791,-500.0,0.00020638,2]
[337309281,1725593440800,-1004.06,0.00020638,2]
[337309282,1725593440809,-500.0,0.00020638,2]
[337309283,1725593440820,-500.62569211,0.00020638,2]
[337309285,1725593440911,-542.68,0.00020638,2]
[337309286,1725593440922,-500.0,0.00020638,2]
[337309287,1725593440931,-500.87227972,0.00020638,2]
[337309288,1725593440941,-500.0,0.00020638,2]
[337309289,1725593440950,-500.0,0.00020638,2]
[337309290,1725593440961,-1328.23,0.00020638,2]
[337309291,1725593440971,-500.0,0.00020638,2]
[337309292,1725593440981,-500.0,0.00020638,2]
[337309293,1725593440991,-500.0,0.00020638,2]
[337309294,1725593441002,-500.0,0.00020638,2]
[337309295,1725593441012,-503.50290854,0.00020638,2]
[337309296,1725593441024,-173.95623009,0.00020638,2]
[337309297,1725593441034,-615.68,0.00020638,2]
[337309298,1725593441043,-500.0,0.00020638,2]
[337309299,1725593441054,-863.59,0.00020638,2]
[337309301,1725593441063,-500.0,0.00020638,2]
[337309302,1725593441072,-526.62,0.00020638,2]
[337309303,1725593441082,-500.0,0.00020638,2]
[337309304,1725593441091,-1059.43,0.00020638,2]
[337309305,1725593441101,-500.0,0.00020638,2]
[337309306,1725593441112,-500.0,0.00020638,2]
[337309307,1725593441121,-500.0,0.00020638,2]
[337309308,1725593441132,-500.0,0.00020638,2]
[337309309,1725593441143,-500.0,0.00020638,2]
[337309310,1725593441153,-179.86031609,0.00020638,2]
[337309311,1725593441163,-500.0,0.00020638,2]
[337309312,1725593441172,-500.0,0.00020638,2]
[337309313,1725593441182,-2991.67262316,0.00020638,2]
[337309314,1725593441191,-500.0,0.00020638,2]
[337309315,1725593441201,-500.0,0.00020638,2]
[337309316,1725593441211,-500.0,0.00020638,2]
[337309317,1725593441221,-1315.95,0.00020638,2]
[337309318,1725593441230,-500.0,0.00020638,2]
[337309319,1725593441240,-500.0,0.00020638,2]
[337309320,1725593441250,-1281.9,0.00020638,2]
[337309321,1725593441259,-500.0,0.00020638,2]
[337309322,1725593441269,-500.0,0.00020638,2]
[337309323,1725593441278,-578.93,0.00020638,2]
[337309324,1725593441288,-670.95,0.00020638,2]
[337309325,1725593441298,-536.6517579,0.00020638,2]
[337309326,1725593441308,-1044.16736054,0.00020638,2]
[337309327,1725593441318,-502.99532719,0.00020638,2]
[337309328,1725593441329,-2461.39,0.00020638,2]
[337309329,1725593441341,-556.96049972,0.00020638,2]
[337309330,1725593441352,-500.0,0.00020638,2]
[337309331,1725593441362,-500.0,0.00020638,2]
[337309332,1725593441375,-500.0,0.00020638,2]
[337309333,1725593441386,-500.0,0.00020638,2]
[337309334,1725593441397,-1874.78,0.00020638,2]
[337309335,1725593441406,-973.18,0.00020638,2]
[337309336,1725593441418,-500.0,0.00020638,2]
[337309337,1725593441429,-10918.76,0.00020638,2]
[337309338,1725593441439,-500.0,0.00020638,2]
[337309339,1725593441452,-500.0,0.00020638,2]
[337309340,1725593441463,-500.0,0.00020638,2]
[337309341,1725593441475,-500.0,0.00020638,2]
[337309342,1725593441487,-1577.08,0.00020638,2]
[337309343,1725593441499,-500.0,0.00020638,2]
[337309344,1725593441510,-500.0,0.00020638,2]
[337309345,1725593441521,-501.38495613,0.00020638,2]
[337309346,1725593441531,-500.0,0.00020638,2]
[337309347,1725593441540,-500.0,0.00020638,2]
[337309348,1725593441549,-500.0,0.00020638,2]
[337309349,1725593441559,-638.04,0.00020638,2]
[337309350,1725593441569,-500.0,0.00020638,2]
[337309351,1725593441579,-500.0,0.00020638,2]
[337309352,1725593441588,-690.77,0.00020638,2]
[337309353,1725593441598,-500.0,0.00020638,2]
[337309354,1725593441607,-500.0,0.00020638,2]
[337309355,1725593441619,-500.0,0.00020638,2]
[337309356,1725593441628,-2150.55,0.00020638,2]
[337309357,1725593441638,-500.0,0.00020638,2]
[337309358,1725593441648,-221.18392883,0.00020638,2]
[337309359,1725593441658,-2199.22,0.00020638,2]
[337309360,1725593441668,-1666.75,0.00020638,2]
[337309361,1725593441677,-3102.05,0.00020638,2]
[337309362,1725593441686,-500.0,0.00020638,2]
[337309363,1725593441695,-500.0,0.00020638,2]
[337309364,1725593441705,-12189.54,0.00020638,2]
[337309365,1725593441716,-500.0,0.00020638,2]
[337309366,1725593441726,-500.0,0.00020638,2]
[337309367,1725593441737,-500.0,0.00020638,2]
[337309368,1725593441748,-500.0,0.00020638,2]
[337309369,1725593441757,-500.0,0.00020638,2]
[337309370,1725593441767,-1450.49,0.00020638,2]
[337309371,1725593441776,-2127.99,0.00020638,2]
[337309372,1725593441785,-500.0,0.00020638,2]
[337309373,1725593441794,-500.0,0.00020638,2]
[337309374,1725593441804,-500.0,0.00020638,2]
[337309375,1725593441813,-500.0,0.00020638,2]
[337309376,1725593441825,-500.0,0.00020638,2]
[337309377,1725593441836,-1010.3,0.00020638,2]
[337309378,1725593441846,-672.49,0.00020638,2]
[337309379,1725593441857,-500.0,0.00020638,2]
[337309380,1725593441867,-507.94366552,0.00020638,2]
[337309381,1725593441876,-500.0,0.00020638,2]
[337309382,1725593441886,-500.0,0.00020638,2]
[337309383,1725593441895,-500.0,0.00020638,2]
[337309384,1725593441904,-1117.75,0.00020638,2]
[337309385,1725593441913,-917.61,0.00020638,2]
[337309386,1725593441922,-655.17,0.00020638,2]
[337309387,1725593441932,-500.0,0.00020638,2]
[337309388,1725593441941,-500.0,0.00020638,2]
[337309389,1725593441950,-501.52655575,0.00020638,2]
[337309390,1725593441959,-891.96,0.00020638,2]
[337309391,1725593441969,-500.0,0.00020638,2]
[337309392,1725593441978,-502.7179879,0.00020638,2]
[337309393,1725593441988,-500.0,0.00020638,2]
[337309394,1725593442007,-929.52,0.00020638,2]
[337309395,1725593442022,-3772.49,0.00020638,2]
[337309396,1725593442034,-595.04,0.00020638,2]
[337309397,1725593442047,-25483.24,0.00020638,2]
[337309398,1725593442058,-515.99085676,0.00020638,2]
[337309399,1725593442069,-500.0,0.00020638,2]
[337309400,1725593442081,-521.51701533,0.00020638,2]
[337309401,1725593442093,-500.0,0.00020638,2]
[337309402,1725593442103,-500.0,0.00020638,2]
[337309403,1725593442114,-500.0,0.00020638,2]
[337309404,1725593442125,-500.0,0.00020638,2]
[337309405,1725593442134,-500.0,0.00020638,2]
[337309406,1725593442144,-501.17211331,0.00020638,2]
[337309407,1725593442154,-500.0,0.00020638,2]
[337309408,1725593442163,-500.0,0.00020638,2]
[337309409,1725593442172,-500.0,0.00020638,2]
[337309410,1725593442182,-505.2687899,0.00020639,2]
[337309411,1725593442191,-500.0,0.00020639,2]
[337309412,1725593442200,-422.4998611,0.00020639,2]
[337309413,1725593442212,-500.0,0.00020639,2]
[337309414,1725593442221,-506.20650483,0.00020639,2]
[337309415,1725593442231,-389.82308616,0.00020639,2]
[337309416,1725593442240,-500.0,0.00020639,2]
[337309417,1725593442360,-500.0,0.00020639,2]
[337309418,1725593442371,-200.0,0.00020639,2]
[337309419,1725593442382,-500.0,0.00020639,2]
[337309420,1725593442391,-537.94,0.00020639,2]
[337309421,1725593442401,-500.0,0.00020639,2]
[337309422,1725593442410,-500.0,0.00020639,2]
[337309423,1725593442421,-258.38646929,0.00020639,2]
[337309424,1725593442430,-564.28875178,0.00020639,2]
[337309425,1725593442440,-178.23806481,0.00020639,2]
[337309426,1725593442451,-504.42989638,0.00020639,2]
[337309427,1725593442463,-500.0,0.00020639,2]
[337309428,1725593442472,-500.35977735,0.00020639,2]
[337309429,1725593442481,-500.0,0.00020639,2]
[337309430,1725593442491,-500.0,0.00020639,2]
[337309431,1725593442500,-500.0,0.00020639,2]
[337309432,1725593442509,-500.0,0.00020639,2]
[337309433,1725593442520,-504.90166564,0.00020639,2]
[337309434,1725593442530,-500.0,0.00020639,2]
[337309435,1725593442539,-500.0,0.00020639,2]
[337309436,1725593442549,-500.0,0.00020639,2]
[337309437,1725593442558,-500.0,0.00020639,2]
[337309438,1725593442567,-500.0,0.00020639,2]
[337309439,1725593442576,-500.0,0.00020639,2]
[337309440,1725593442585,-504.71397459,0.00020639,2]
[337309441,1725593442594,-500.0,0.00020639,2]
[337309442,1725593442607,-504.16910422,0.00020639,2]
[337309443,1725593442616,-500.0,0.00020639,2]
[337309444,1725593442626,-500.0,0.00020639,2]
[337309445,1725593442636,-500.0,0.00020639,2]
[337309446,1725593442645,-500.0,0.00020639,2]
[337309447,1725593442655,-1853.75,0.00020639,2]
[337309448,1725593442665,-500.0,0.00020639,2]
[337309449,1725593442674,-500.0,0.00020639,2]
[337309450,1725593442685,-500.0,0.00020639,2]
[337309451,1725593442695,-500.0,0.00020639,2]
[337309452,1725593442706,-500.0,0.00020639,2]
[337309453,1725593442723,-500.0,0.00020639,2]
[337309454,1725593442733,-686.4,0.00020639,2]
[337309455,1725593442742,-500.0,0.00020639,2]
[337309456,1725593442753,-500.0,0.00020639,2]
[337309457,1725593442763,-347.23621391,0.00020639,2]
[337309458,1725593442773,-500.0,0.00020639,2]
[337309459,1725593442782,-500.0,0.00020639,2]
[337309460,1725593442792,-503.97232921,0.00020639,2]
[337309461,1725593442802,-511.36274307,0.00020639,2]
[337309462,1725593442811,-500.0,0.00020639,2]
[337309463,1725593442822,-546.92,0.00020639,2]
[337309464,1725593442832,-509.7304621,0.00020639,2]
[337309465,1725593442843,-502.35926908,0.00020639,2]
[337309466,1725593442853,-500.0,0.00020639,2]
[337309467,1725593442863,-500.0,0.00020639,2]
[337309468,1725593442872,-500.0,0.00020639,2]
[337309469,1725593442882,-553.06170415,0.00020639,2]
[337309470,1725593442891,-500.0,0.00020639,2]
[337309471,1725593442901,-502.48308129,0.00020639,2]
[337309472,1725593442910,-500.0,0.00020639,2]
[337309473,1725593442922,-500.0,0.00020639,2]
[337309474,1725593442935,-500.0,0.00020639,2]
[337309475,1725593442947,-500.0,0.00020639,2]
[337309476,1725593442959,-500.0,0.00020639,2]
[337309477,1725593442969,-656.95,0.00020639,2]
[337309478,1725593442979,-504.8507852,0.00020639,2]
[337309479,1725593442988,-500.0,0.00020639,2]
[337309480,1725593442998,-503.9489412,0.00020639,2]
[337309481,1725593443008,-500.0,0.00020639,2]
[337309482,1725593443019,-500.22383827,0.00020639,2]
[337309483,1725593443030,-500.0,0.00020639,2]
[337309484,1725593443042,-500.0,0.00020639,2]
[337309485,1725593443056,-500.0,0.00020639,2]
[337309486,1725593443066,-500.0,0.00020639,2]
[337309487,1725593443078,-502.94031787,0.00020639,2]
[337309488,1725593443088,-500.0,0.00020639,2]
[337309489,1725593443100,-500.0,0.00020639,2]
[337309490,1725593443111,-500.0,0.00020639,2]
[337309491,1725593443121,-501.13760035,0.00020639,2]
[337309492,1725593443133,-500.0,0.00020639,2]
[337309493,1725593443144,-501.88395501,0.00020639,2]
[337309494,1725593443155,-500.0,0.00020639,2]
[337309495,1725593443164,-504.01595041,0.00020639,2]
[337309497,1725593443174,-508.86539734,0.00020639,2]
[337309499,1725593443184,-500.0,0.00020639,2]
[337309502,1725593443194,-500.0,0.00020639,2]
[337309504,1725593443204,-504.67213129,0.00020639,2]
[337309505,1725593443216,-500.0,0.00020639,2]
[337309506,1725593443227,-500.0,0.00020639,2]
[337309507,1725593443238,-500.0,0.00020639,2]
[337309508,1725593443249,-500.0,0.00020639,2]
[337309509,1725593443259,-502.83070949,0.00020639,2]
[337309510,1725593443271,-500.0,0.00020639,2]
[337309511,1725593443280,-500.0,0.00020639,2]
[337309512,1725593443291,-502.12655795,0.00020639,2]
[337309513,1725593443302,-500.0,0.00020639,2]
[337309514,1725593443312,-500.69166057,0.00020639,2]
[337309515,1725593443321,-505.11537361,0.00020639,2]
[337309516,1725593443333,-500.0,0.00020639,2]
[337309517,1725593443342,-500.0,0.00020639,2]
[337309518,1725593443352,-500.0,0.00020639,2]
[337309519,1725593443361,-504.64337847,0.00020639,2]
[337309520,1725593443372,-500.0,0.00020639,2]
[337309521,1725593443384,-502.67524256,0.00020639,2]
[337309522,1725593443393,-500.0,0.00020639,2]
[337309523,1725593443403,-500.0,0.00020639,2]
[337309524,1725593443414,-500.0,0.00020639,2]
[337309525,1725593443424,-500.0,0.00020639,2]
[337309526,1725593443434,-500.0,0.00020639,2]
[337309527,1725593443444,-500.0,0.00020639,2]
[337309528,1725593443456,-500.0,0.00020639,2]
[337309529,1725593443466,-1315.95,0.00020639,2]
[337309530,1725593443476,-500.0,0.00020639,2]
[337309531,1725593443486,-500.0,0.00020639,2]
[337309532,1725593443495,-500.0,0.00020639,2]
[337309533,1725593443504,-500.0,0.00020639,2]
[337309534,1725593443514,-500.0,0.00020639,2]
[337309535,1725593443525,-311.73911999,0.00020639,2]
[337309536,1725593443537,-500.0,0.00020639,2]
[337309537,1725593443546,-500.0,0.00020639,2]
[337309538,1725593443556,-500.0,0.00020639,2]
[337309539,1725593443568,-500.0,0.00020639,2]
[337309540,1725593443578,-201.61839189,0.00020639,2]
[337309541,1725593443590,-500.0,0.00020639,2]
[337309542,1725593443685,-500.0,0.00020639,2]
[337309543,1725593443695,-500.0,0.00020639,2]
[337309544,1725593443704,-503.413401,0.00020639,2]
[337309545,1725593443715,-500.0,0.00020639,2]
[337309546,1725593443726,-500.0,0.00020639,2]
[337309547,1725593443738,-597.79083245,0.00020639,2]
[337309548,1725593443749,-500.0,0.00020639,2]
[337309550,1725593443758,-500.0,0.00020639,2]
[337309552,1725593443768,-500.0,0.00020639,2]
[337309553,1725593443777,-500.0,0.00020639,2]
[337309554,1725593443787,-500.0,0.00020639,2]
[337309555,1725593443797,-500.0,0.00020639,2]
[337309556,1725593443806,-500.0,0.00020639,2]
[337309557,1725593443816,-500.0,0.00020639,2]
[337309558,1725593443827,-500.0,0.00020639,2]
[337309559,1725593443838,-500.31463623,0.00020639,2]
[337309560,1725593443848,-478.27950299,0.00020639,2]
[337309561,1725593443858,-547.23694791,0.00020639,2]
[337309562,1725593443867,-504.68733185,0.00020639,2]
[337309563,1725593443878,-500.0,0.00020639,2]
[337309564,1725593443887,-507.07749659,0.00020639,2]
[337309565,1725593443896,-500.0,0.00020639,2]
[337309566,1725593443916,-500.0,0.00020639,2]
[337309567,1725593443928,-500.0,0.00020639,2]
[337309568,1725593443938,-500.0,0.00020639,2]
[337309569,1725593443949,-500.0,0.00020639,2]
[337309570,1725593443960,-551.03428584,0.00020639,2]
[337309571,1725593443972,-500.0,0.00020639,2]
[337309572,1725593443983,-500.0,0.00020639,2]
[337309573,1725593443995,-500.0,0.00020639,2]
[337309574,1725593444007,-500.40354315,0.00020639,2]
[337309575,1725593444018,-500.0,0.00020639,2]
[337309576,1725593444028,-500.0,0.00020639,2]
[337309577,1725593444039,-500.0,0.00020639,2]
[337309578,1725593444048,-500.0,0.00020639,2]
[337309579,1725593444060,-701.01,0.00020639,2]
[337309580,1725593444070,-500.0,0.00020639,2]
[337309581,1725593444080,-500.0,0.00020639,2]
[337309582,1725593444093,-500.0,0.00020639,2]
[337309583,1725593444106,-500.0,0.00020639,2]
[337309584,1725593444120,-500.0,0.00020639,2]
[337309585,1725593444132,-500.0,0.00020639,2]
[337309586,1725593444146,-500.0,0.00020639,2]
[337309587,1725593444158,-500.0,0.00020639,2]
[337309588,1725593444171,-500.0,0.00020639,2]
[337309589,1725593444182,-500.0,0.00020639,2]
[337309590,1725593444193,-500.0,0.00020639,2]
[337309591,1725593444203,-500.0,0.00020639,2]
[337309592,1725593444215,-500.0,0.00020639,2]
[337309593,1725593444225,-500.0,0.00020639,2]
[337309594,1725593444236,-500.0,0.00020639,2]
[337309595,1725593444247,-501.20631159,0.00020639,2]
[337309596,1725593444257,-500.0,0.00020639,2]
[337309597,1725593444266,-500.0,0.00020639,2]
[337309598,1725593444276,-500.0,0.00020639,2]
[337309599,1725593444299,-500.0,0.00020639,2]
[337309600,1725593444324,-500.0,0.00020639,2]
[337309601,1725593444343,-500.0,0.00020639,2]
[337309602,1725593444366,-500.0,0.00020639,2]
[337309603,1725593444391,-514.71074449,0.00020639,2]
[337309604,1725593444411,-500.0,0.00020639,2]
[337309605,1725593444433,-500.0,0.00020639,2]
[337309606,1725593444452,-505.7,0.00020639,2]
[337309607,1725593444466,-500.0,0.00020639,2]
[337309608,1725593444485,-1058.56,0.00020639,2]
[337309609,1725593444508,-500.0,0.00020639,2]